[Event "*** Titled Tuesday Blitz"]
[Site "Chess.com"]
[Date "2020.11.03"]
[Round "1"]
[White "abykhovsky"]
[Black "ErikRonka"]
[Result "1-0"]
[WhiteElo "2748"]
[BlackElo "2380"]
[TimeControl "180+1"]
[EndTime "10:07:19 PST"]
[Termination "abykhovsky won by resignation"]

1. Nf3 {[%clk 0:03:00.9]} 1... d5 {[%clk 0:02:59.4]} 2. g3 {[%clk 0:03:00.3]}
2... Nf6 {[%clk 0:02:59.1]} 3. Bg2 {[%clk 0:03:00.9]} 3... Bg4 {[%clk
0:02:59.6]} 4. O-O {[%clk 0:03:01.2]} 4... Nbd7 {[%clk 0:03:00.2]} 5. d4 {[%clk
0:03:01.7]} 5... e6 {[%clk 0:03:00.6]} 6. Nbd2 {[%clk 0:03:02.2]} 6... Bd6
{[%clk 0:03:00.3]} 7. Re1 {[%clk 0:03:02.5]} 7... O-O {[%clk 0:03:00.2]} 8. e4
{[%clk 0:03:03]} 8... dxe4 {[%clk 0:03:00.3]} 9. Nxe4 {[%clk 0:03:02.7]} 9...
Nxe4 {[%clk 0:03:00.8]} 10. Rxe4 {[%clk 0:03:03.6]} 10... Bf5 {[%clk 0:03:01]}
11. Re1 {[%clk 0:03:03.2]} 11... c6 {[%clk 0:02:58.7]} 12. Nh4 {[%clk
0:03:00.1]} 12... Bg6 {[%clk 0:02:58.3]} 13. c3 {[%clk 0:02:57.9]} 13... Qc7
{[%clk 0:02:57.5]} 14. f4 {[%clk 0:02:51.6]} 14... c5 {[%clk 0:02:52.6]} 15. d5
{[%clk 0:02:50.2]} 15... Rad8 {[%clk 0:02:15.7]} 16. dxe6 {[%clk 0:02:43.5]}
16... Nf6 {[%clk 0:02:14]} 17. Qb3 {[%clk 0:02:34.3]} 17... b6 {[%clk
0:01:29.5]} 18. Nxg6 {[%clk 0:01:56.1]} 18... hxg6 {[%clk 0:01:30.4]} 19. exf7+
{[%clk 0:01:56.3]} 19... Rxf7 {[%clk 0:01:28.4]} 20. Be3 {[%clk 0:01:54.1]}
20... Kh7 {[%clk 0:01:21.1]} 21. Rad1 {[%clk 0:01:46.6]} 21... Rfd7 {[%clk
0:01:14.2]} 22. Bf3 {[%clk 0:01:42.8]} 22... c4 {[%clk 0:01:07.9]} 23. Qb5
{[%clk 0:01:42]} 23... Bc5 {[%clk 0:00:48.9]} 24. Bxc5 {[%clk 0:01:36]} 24...
bxc5 {[%clk 0:00:45.5]} 25. Qxc4 {[%clk 0:01:34.2]} 25... Rd2 {[%clk 0:00:43.5]}
26. Rxd2 {[%clk 0:01:31.5]} 26... Rxd2 {[%clk 0:00:44.4]} 27. Re2 {[%clk
0:01:32]} 27... Rd1+ {[%clk 0:00:36.2]} 28. Kg2 {[%clk 0:01:30.6]} 28... Qd6
{[%clk 0:00:36.1]} 29. Qe6 {[%clk 0:01:27.7]} 29... Qd3 {[%clk 0:00:34]} 30.
Qh3+ {[%clk 0:01:26.6]} 30... Kg8 {[%clk 0:00:32.3]} 31. Qc8+ {[%clk 0:01:16.7]}
31... Kh7 {[%clk 0:00:31.8]} 32. Qxc5 {[%clk 0:01:17.1]} 32... Qb1 {[%clk
0:00:31.4]} 33. Qxa7 {[%clk 0:01:01.6]} 33... Qd3 {[%clk 0:00:14.6]} 34. Qe3
{[%clk 0:00:59.1]} 34... Qb1 {[%clk 0:00:14]} 35. a4 {[%clk 0:00:59]} 35... Qa2
{[%clk 0:00:13.7]} 36. Rd2 {[%clk 0:00:51.8]} 36... Rb1 {[%clk 0:00:12.8]} 37.
b4 {[%clk 0:00:48.2]} 37... Qxa4 {[%clk 0:00:11.7]} 38. h4 {[%clk 0:00:47.9]}
38... Qa1 {[%clk 0:00:11.1]} 39. Qd4 {[%clk 0:00:38.1]} 39... Rc1 {[%clk
0:00:10.6]} 40. b5 {[%clk 0:00:36.2]} 40... Rxc3 {[%clk 0:00:07.9]} 41. b6
{[%clk 0:00:35]} 41... Qa3 {[%clk 0:00:07.5]} 42. Qf2 {[%clk 0:00:32.1]} 42...
Qb3 {[%clk 0:00:06.7]} 43. Rb2 {[%clk 0:00:31.1]} 43... Rxf3 {[%clk 0:00:04]}
44. Rxb3 {[%clk 0:00:31.3]} 44... Rxf2+ {[%clk 0:00:04]} 45. Kxf2 {[%clk
0:00:31.4]} 45... Ne4+ {[%clk 0:00:04.3]} 46. Ke1 {[%clk 0:00:30.1]} 46... Nc5
{[%clk 0:00:05.2]} 47. b7 {[%clk 0:00:30.6]} 1-0

[Event "*** Titled Tuesday Blitz"]
[Site "Chess.com"]
[Date "2020.11.03"]
[Round "1"]
[White "Markov_Mikhail"]
[Black "jaskol95"]
[Result "1-0"]
[WhiteElo "2637"]
[BlackElo "2313"]
[TimeControl "180+1"]
[EndTime "10:07:19 PST"]
[Termination "Markov_Mikhail won by resignation"]

1. c4 {[%clk 0:03:00.7]} 1... g6 {[%clk 0:02:58.5]} 2. Nf3 {[%clk 0:03:00.2]}
2... Bg7 {[%clk 0:02:58.5]} 3. g3 {[%clk 0:03:00.6]} 3... c6 {[%clk 0:02:57.6]}
4. Bg2 {[%clk 0:03:00.9]} 4... Nf6 {[%clk 0:02:55.9]} 5. O-O {[%clk 0:03:00.4]}
5... d5 {[%clk 0:02:56.2]} 6. cxd5 {[%clk 0:03:00]} 6... cxd5 {[%clk 0:02:57.1]}
7. Nc3 {[%clk 0:02:59.2]} 7... O-O {[%clk 0:02:52.9]} 8. d4 {[%clk 0:03:00.1]}
8... Ne4 {[%clk 0:02:51.5]} 9. e3 {[%clk 0:03:00.1]} 9... Nxc3 {[%clk
0:02:50.2]} 10. bxc3 {[%clk 0:03:01]} 10... Nc6 {[%clk 0:02:50.1]} 11. Nd2
{[%clk 0:02:59.8]} 11... e6 {[%clk 0:02:33.9]} 12. c4 {[%clk 0:02:55.8]} 12...
dxc4 {[%clk 0:02:09.6]} 13. Nxc4 {[%clk 0:02:54.2]} 13... Qc7 {[%clk 0:02:09.7]}
14. Ba3 {[%clk 0:02:52]} 14... Rd8 {[%clk 0:02:09.1]} 15. Rc1 {[%clk 0:02:52.1]}
15... Bf8 {[%clk 0:02:01.6]} 16. Bxf8 {[%clk 0:02:48.5]} 16... Kxf8 {[%clk
0:01:59]} 17. Qa4 {[%clk 0:02:47.8]} 17... Bd7 {[%clk 0:01:55.8]} 18. Qa3+
{[%clk 0:02:47.3]} 18... Kg7 {[%clk 0:01:54.5]} 19. Ne5 {[%clk 0:02:37.6]} 19...
a6 {[%clk 0:01:37]} 20. Rc5 {[%clk 0:02:25.4]} 20... Qd6 {[%clk 0:01:25.4]} 21.
Nxc6 {[%clk 0:02:24]} 21... Bxc6 {[%clk 0:01:22.8]} 22. Bxc6 {[%clk 0:02:23.7]}
22... bxc6 {[%clk 0:01:15.6]} 23. Rfc1 {[%clk 0:02:23.5]} 23... Rdc8 {[%clk
0:01:12.8]} 24. Qa4 {[%clk 0:02:23.1]} 24... Qd7 {[%clk 0:00:54.5]} 25. Rxc6
{[%clk 0:02:09.8]} 25... Rxc6 {[%clk 0:00:37.1]} 26. Qxc6 {[%clk 0:02:10.6]}
26... Qxc6 {[%clk 0:00:36.6]} 27. Rxc6 {[%clk 0:02:11.5]} 27... Kf8 {[%clk
0:00:32.8]} 28. a4 {[%clk 0:02:10.9]} 28... a5 {[%clk 0:00:30.5]} 29. Rc5 {[%clk
0:02:05.1]} 29... Ke7 {[%clk 0:00:29]} 30. f4 {[%clk 0:02:03.8]} 30... Kd6
{[%clk 0:00:29.1]} 31. Kg2 {[%clk 0:02:03.2]} 31... f5 {[%clk 0:00:27.2]} 32.
Kf3 {[%clk 0:02:03.1]} 32... h6 {[%clk 0:00:24.7]} 33. h3 {[%clk 0:02:03.2]}
33... Kd7 {[%clk 0:00:24.6]} 34. g4 {[%clk 0:02:02.9]} 34... Kd6 {[%clk
0:00:25]} 35. h4 {[%clk 0:01:56]} 35... h5 {[%clk 0:00:22.5]} 36. g5 {[%clk
0:01:50.9]} 36... Kd7 {[%clk 0:00:18.7]} 37. e4 {[%clk 0:01:39.8]} 37... fxe4+
{[%clk 0:00:18.7]} 38. Kxe4 {[%clk 0:01:39.3]} 38... Kd6 {[%clk 0:00:19.3]} 39.
Rb5 {[%clk 0:01:38.9]} 39... Kd7 {[%clk 0:00:13.5]} 40. Ke5 {[%clk 0:01:36.1]}
40... Rf8 {[%clk 0:00:13.3]} 41. Rb7+ {[%clk 0:01:36.1]} 41... Kc6 {[%clk
0:00:13.7]} 42. Rg7 {[%clk 0:01:36]} 42... Rf5+ {[%clk 0:00:13.8]} 43. Ke4
{[%clk 0:01:36.2]} 43... Kd6 {[%clk 0:00:10.8]} 44. Rxg6 {[%clk 0:01:35.5]}
44... Rf7 {[%clk 0:00:10.2]} 45. d5 {[%clk 0:01:33.8]} 45... Rb7 {[%clk
0:00:08.2]} 46. Rxe6+ {[%clk 0:01:33.6]} 46... Kc5 {[%clk 0:00:08.6]} 47. Rc6+
{[%clk 0:01:33.1]} 47... Kb4 {[%clk 0:00:08.5]} 48. d6 {[%clk 0:01:33.2]} 48...
Kxa4 {[%clk 0:00:07.9]} 49. Rc7 {[%clk 0:01:33.5]} 49... Rb6 {[%clk 0:00:07.8]}
50. d7 {[%clk 0:01:32.9]} 50... Re6+ {[%clk 0:00:08]} 51. Kf5 {[%clk 0:01:31.3]}
51... Rd6 {[%clk 0:00:08.1]} 52. Ke5 {[%clk 0:01:31.3]} 52... Rd3 {[%clk
0:00:07.5]} 53. Ke6 {[%clk 0:01:31.5]} 53... Re3+ {[%clk 0:00:07.5]} 54. Kf7
{[%clk 0:01:30]} 54... Rd3 {[%clk 0:00:08]} 55. g6 {[%clk 0:01:30.3]} 55... Kb5
{[%clk 0:00:06.9]} 56. g7 {[%clk 0:01:30.5]} 56... Kb6 {[%clk 0:00:07.4]} 57.
g8=Q {[%clk 0:01:29]} 57... Kxc7 {[%clk 0:00:07.5]} 58. Qc8+ {[%clk 0:01:29.3]}
58... Kb6 {[%clk 0:00:07.7]} 59. d8=Q+ {[%clk 0:01:30.2]} 59... Rxd8 {[%clk
0:00:07.3]} 60. Qxd8+ {[%clk 0:01:31.1]} 60... Kb5 {[%clk 0:00:07.7]} 61. Ke6
{[%clk 0:01:32]} 61... a4 {[%clk 0:00:08.2]} 62. Kd5 {[%clk 0:01:32.9]} 62... a3
{[%clk 0:00:08.9]} 63. Qb8+ {[%clk 0:01:33.6]} 63... Ka6 {[%clk 0:00:09.8]} 64.
Kc4 {[%clk 0:01:33.9]} 64... a2 {[%clk 0:00:10.6]} 65. Qa8+ {[%clk 0:01:31.3]}
65... Kb6 {[%clk 0:00:10.7]} 66. Qxa2 {[%clk 0:01:31.8]} 1-0

[Event "*** Titled Tuesday Blitz"]
[Site "Chess.com"]
[Date "2020.11.03"]
[Round "1"]
[White "WiktoriaPOL"]
[Black "Misticpikachu"]
[Result "0-1"]
[WhiteElo "2080"]
[BlackElo "2504"]
[TimeControl "180+1"]
[EndTime "10:07:19 PST"]
[Termination "Misticpikachu won by resignation"]

1. c4 {[%clk 0:03:00.9]} 1... e6 {[%clk 0:03:00]} 2. Nc3 {[%clk 0:03:00.4]} 2...
d5 {[%clk 0:03:00.5]} 3. d4 {[%clk 0:02:58.8]} 3... Nf6 {[%clk 0:03:00.5]} 4.
cxd5 {[%clk 0:02:58.2]} 4... exd5 {[%clk 0:03:00]} 5. Bg5 {[%clk 0:02:58.8]}
5... Be7 {[%clk 0:02:57.5]} 6. e3 {[%clk 0:02:59]} 6... O-O {[%clk 0:02:57.9]}
7. Bd3 {[%clk 0:02:56.8]} 7... c6 {[%clk 0:02:58.1]} 8. Qc2 {[%clk 0:02:56.5]}
8... Nbd7 {[%clk 0:02:57.9]} 9. Nge2 {[%clk 0:02:56]} 9... Re8 {[%clk
0:02:50.6]} 10. O-O {[%clk 0:02:54.7]} 10... Nf8 {[%clk 0:02:49]} 11. Rae1
{[%clk 0:02:53.1]} 11... g6 {[%clk 0:02:47.9]} 12. f3 {[%clk 0:02:50.8]} 12...
Ne6 {[%clk 0:02:46.4]} 13. Bh4 {[%clk 0:02:48.8]} 13... b5 {[%clk 0:02:45.3]}
14. Bf2 {[%clk 0:02:44.2]} 14... Bb7 {[%clk 0:02:38.8]} 15. a3 {[%clk
0:02:29.6]} 15... a5 {[%clk 0:02:33.7]} 16. e4 {[%clk 0:02:23.9]} 16... dxe4
{[%clk 0:02:33.1]} 17. Nxe4 {[%clk 0:02:08.4]} 17... Nd5 {[%clk 0:02:32.3]} 18.
Nc5 {[%clk 0:01:54.6]} 18... Nxc5 {[%clk 0:02:13.7]} 19. dxc5 {[%clk 0:01:55.5]}
19... Bc8 {[%clk 0:02:01.5]} 20. Nc3 {[%clk 0:01:46.6]} 20... Be6 {[%clk
0:02:00.2]} 21. Nxd5 {[%clk 0:01:43]} 21... Bxd5 {[%clk 0:01:56.6]} 22. Be4
{[%clk 0:01:40]} 22... Bf8 {[%clk 0:01:44.9]} 23. Rd1 {[%clk 0:01:35]} 23... Qd7
{[%clk 0:01:37.5]} 24. Bxd5 {[%clk 0:01:34.1]} 24... cxd5 {[%clk 0:01:38.4]} 25.
b4 {[%clk 0:01:31.6]} 25... axb4 {[%clk 0:01:36.4]} 26. axb4 {[%clk 0:01:32.5]}
26... Qc6 {[%clk 0:01:36.7]} 27. Qb3 {[%clk 0:01:30.9]} 27... Rad8 {[%clk
0:01:18.2]} 28. Bd4 {[%clk 0:01:27.4]} 28... Bg7 {[%clk 0:01:14.7]} 29. Bxg7
{[%clk 0:01:23.4]} 29... Kxg7 {[%clk 0:01:15.6]} 30. Rfe1 {[%clk 0:01:19.5]}
30... Re6 {[%clk 0:01:11.7]} 31. Qc3+ {[%clk 0:01:17.6]} 31... Kg8 {[%clk
0:01:10.1]} 32. Rxe6 {[%clk 0:01:16.6]} 32... Qxe6 {[%clk 0:01:07]} 33. Qd3
{[%clk 0:01:16.5]} 33... d4 {[%clk 0:00:51]} 34. Qxb5 {[%clk 0:01:13.3]} 34...
d3 {[%clk 0:00:50.9]} 35. Qb6 {[%clk 0:00:16.7]} 35... Qe3+ {[%clk 0:00:49]} 36.
Kh1 {[%clk 0:00:16.2]} 36... Re8 {[%clk 0:00:49.4]} 37. h3 {[%clk 0:00:13.5]}
37... d2 {[%clk 0:00:46.9]} 38. Qd6 {[%clk 0:00:03.1]} 38... Qe1+ {[%clk
0:00:45.1]} 39. Rxe1 {[%clk 0:00:02.7]} 39... dxe1=Q+ {[%clk 0:00:45]} 40. Kh2
{[%clk 0:00:03.3]} 40... Qxb4 {[%clk 0:00:36.3]} 41. Qd7 {[%clk 0:00:02.1]}
41... Qb8+ {[%clk 0:00:34.5]} 42. g3 {[%clk 0:00:01.1]} 42... Re2+ {[%clk
0:00:34]} 43. Kg1 {[%clk 0:00:01.3]} 43... Qb1+ {[%clk 0:00:33.7]} 0-1

[Event "*** Titled Tuesday Blitz"]
[Site "Chess.com"]
[Date "2020.11.03"]
[Round "1"]
[White "PattyCastillo"]
[Black "SARGISMV"]
[Result "0-1"]
[WhiteElo "1914"]
[BlackElo "2481"]
[TimeControl "180+1"]
[EndTime "10:07:19 PST"]
[Termination "SARGISMV won on time"]

1. d4 {[%clk 0:02:58.4]} 1... e6 {[%clk 0:02:52.8]} 2. Nf3 {[%clk 0:02:57.5]}
2... c5 {[%clk 0:02:53.1]} 3. e3 {[%clk 0:02:57.1]} 3... Nf6 {[%clk 0:02:54]} 4.
Bd3 {[%clk 0:02:56.8]} 4... cxd4 {[%clk 0:02:54.9]} 5. exd4 {[%clk 0:02:56.8]}
5... b6 {[%clk 0:02:54.4]} 6. O-O {[%clk 0:02:56.6]} 6... Bb7 {[%clk 0:02:54.6]}
7. Nbd2 {[%clk 0:02:55.7]} 7... Be7 {[%clk 0:02:55]} 8. b3 {[%clk 0:02:55.6]}
8... O-O {[%clk 0:02:55.3]} 9. Bb2 {[%clk 0:02:56.2]} 9... Nc6 {[%clk
0:02:55.5]} 10. a3 {[%clk 0:02:55.5]} 10... Rc8 {[%clk 0:02:54.9]} 11. Qe2
{[%clk 0:02:55.6]} 11... d6 {[%clk 0:02:54.4]} 12. Rac1 {[%clk 0:02:55.5]} 12...
Rc7 {[%clk 0:02:54.7]} 13. Rfe1 {[%clk 0:02:55.5]} 13... Qa8 {[%clk 0:02:54.3]}
14. c4 {[%clk 0:02:53.7]} 14... Rd8 {[%clk 0:02:50.9]} 15. Ng5 {[%clk 0:02:46]}
15... h6 {[%clk 0:02:49.1]} 16. Nge4 {[%clk 0:02:26.6]} 16... Na5 {[%clk
0:02:43]} 17. d5 {[%clk 0:02:19]} 17... e5 {[%clk 0:02:13]} 18. Nxf6+ {[%clk
0:02:09]} 18... Bxf6 {[%clk 0:02:12.8]} 19. Ne4 {[%clk 0:02:08.2]} 19... Nxb3
{[%clk 0:02:07.8]} 20. Nxf6+ {[%clk 0:02:07.4]} 20... gxf6 {[%clk 0:02:08.7]}
21. Qg4+ {[%clk 0:02:03.6]} 21... Kf8 {[%clk 0:02:08.7]} 22. Rc3 {[%clk
0:01:27.2]} 22... Nc5 {[%clk 0:01:54.7]} 23. Bf5 {[%clk 0:01:24.6]} 23... Bc8
{[%clk 0:01:53.9]} 24. Bxc8 {[%clk 0:01:21.6]} 24... Qxc8 {[%clk 0:01:53.1]} 25.
Qh4 {[%clk 0:01:20.5]} 25... Ke7 {[%clk 0:01:41.1]} 26. Rf3 {[%clk 0:01:19.2]}
26... Nd7 {[%clk 0:01:40.7]} 27. Bxe5 {[%clk 0:01:02.3]} 27... dxe5 {[%clk
0:01:36.2]} 28. Rxe5+ {[%clk 0:01:01.2]} 28... Nxe5 {[%clk 0:00:50.8]} 29. Qxf6+
{[%clk 0:00:59.6]} 29... Kd7 {[%clk 0:00:45.2]} 30. Qxe5 {[%clk 0:00:53.2]}
30... Rf8 {[%clk 0:00:35.4]} 31. d6 {[%clk 0:00:45.2]} 31... Rxc4 {[%clk
0:00:30.8]} 32. Qe7+ {[%clk 0:00:44.2]} 32... Kc6 {[%clk 0:00:31]} 33. h4 {[%clk
0:00:24]} 33... Rd8 {[%clk 0:00:29.7]} 34. Rxf7 {[%clk 0:00:20.7]} 34... Rxd6
{[%clk 0:00:29.5]} 35. Rf6 {[%clk 0:00:15.5]} 35... Rxf6 {[%clk 0:00:28.4]} 36.
Qxf6+ {[%clk 0:00:15.4]} 36... Kb7 {[%clk 0:00:29]} 37. Qf7+ {[%clk 0:00:10.7]}
37... Qc7 {[%clk 0:00:28.3]} 38. Qd5+ {[%clk 0:00:09.1]} 38... Rc6 {[%clk
0:00:28.3]} 39. a4 {[%clk 0:00:04.6]} 39... a5 {[%clk 0:00:27.6]} 40. h5 {[%clk
0:00:03.5]} 40... Ka7 {[%clk 0:00:27.3]} 41. g3 {[%clk 0:00:02.4]} 41... Rc1+
{[%clk 0:00:26.6]} 42. Kg2 {[%clk 0:00:02.3]} 42... Qb7 {[%clk 0:00:26.4]} 0-1

[Event "*** Titled Tuesday Blitz"]
[Site "Chess.com"]
[Date "2020.11.03"]
[Round "1"]
[White "Witik"]
[Black "VinzentSpitzl"]
[Result "0-1"]
[WhiteElo "2623"]
[BlackElo "2331"]
[TimeControl "180+1"]
[EndTime "10:07:20 PST"]
[Termination "VinzentSpitzl won on time"]

1. d4 {[%clk 0:02:55.8]} 1... d5 {[%clk 0:03:00.1]} 2. Bf4 {[%clk 0:02:55.2]}
2... Nf6 {[%clk 0:03:00]} 3. e3 {[%clk 0:02:55.2]} 3... c5 {[%clk 0:03:00.1]} 4.
c3 {[%clk 0:02:55.3]} 4... Nc6 {[%clk 0:03:00.1]} 5. Nd2 {[%clk 0:02:53.6]} 5...
Bf5 {[%clk 0:02:59.5]} 6. Ngf3 {[%clk 0:02:53.5]} 6... Qb6 {[%clk 0:02:53.6]} 7.
Nh4 {[%clk 0:02:53.4]} 7... Bd7 {[%clk 0:02:47.7]} 8. Qb3 {[%clk 0:02:51.6]}
8... h6 {[%clk 0:02:29.7]} 9. Nhf3 {[%clk 0:02:38.6]} 9... c4 {[%clk 0:02:15.2]}
10. Qc2 {[%clk 0:02:35.4]} 10... g6 {[%clk 0:02:14.6]} 11. e4 {[%clk 0:02:19.8]}
11... Nxe4 {[%clk 0:01:47.7]} 12. Nxe4 {[%clk 0:02:19.4]} 12... dxe4 {[%clk
0:01:47.8]} 13. Nd2 {[%clk 0:02:20]} 13... Bg7 {[%clk 0:01:36.7]} 14. Bxc4
{[%clk 0:02:02.8]} 14... O-O {[%clk 0:01:35.6]} 15. O-O {[%clk 0:02:00.3]} 15...
Rac8 {[%clk 0:01:30.3]} 16. Qxe4 {[%clk 0:01:54]} 16... Bf5 {[%clk 0:01:30.1]}
17. Qe3 {[%clk 0:01:47.6]} 17... Qxb2 {[%clk 0:01:23.9]} 18. Rac1 {[%clk
0:01:05.2]} 18... b5 {[%clk 0:00:52.7]} 19. Rb1 {[%clk 0:00:25]} 19... Bxb1
{[%clk 0:00:32.5]} 20. Rxb1 {[%clk 0:00:25.9]} 20... Qa3 {[%clk 0:00:31.8]} 21.
Bxb5 {[%clk 0:00:14.3]} 21... a6 {[%clk 0:00:27.2]} 22. Bf1 {[%clk 0:00:12.7]}
22... Qxa2 {[%clk 0:00:23.9]} 23. Bxh6 {[%clk 0:00:10.6]} 23... e6 {[%clk
0:00:12.2]} 24. Bxg7 {[%clk 0:00:09.8]} 24... Kxg7 {[%clk 0:00:13.1]} 25. Re1
{[%clk 0:00:07]} 25... Ne7 {[%clk 0:00:10.3]} 26. Qe5+ {[%clk 0:00:04.6]} 26...
Kg8 {[%clk 0:00:10.7]} 27. Ne4 {[%clk 0:00:04.7]} 27... Nd5 {[%clk 0:00:07.9]}
28. c4 {[%clk 0:00:05]} 28... Rxc4 {[%clk 0:00:08.1]} 29. Bxc4 {[%clk
0:00:04.3]} 29... Qxc4 {[%clk 0:00:09]} 30. h4 {[%clk 0:00:04.2]} 30... Qc7
{[%clk 0:00:04.7]} 31. Nf6+ {[%clk 0:00:03.3]} 31... Kh8 {[%clk 0:00:02.7]} 0-1

[Event "*** Titled Tuesday Blitz"]
[Site "Chess.com"]
[Date "2020.11.03"]
[Round "1"]
[White "Ariadna_Atreides"]
[Black "ShahMatKanal"]
[Result "0-1"]
[WhiteElo "2109"]
[BlackElo "2511"]
[TimeControl "180+1"]
[EndTime "10:07:21 PST"]
[Termination "ShahMatKanal won on time"]

1. d4 {[%clk 0:03:00.3]} 1... d5 {[%clk 0:02:59.7]} 2. Nf3 {[%clk 0:02:59.9]}
2... c5 {[%clk 0:02:58.2]} 3. e3 {[%clk 0:02:58.5]} 3... cxd4 {[%clk 0:02:57.6]}
4. exd4 {[%clk 0:02:57.5]} 4... Nc6 {[%clk 0:02:57.8]} 5. c3 {[%clk 0:02:57.1]}
5... g6 {[%clk 0:02:56.1]} 6. Bd3 {[%clk 0:02:54.6]} 6... Bg7 {[%clk 0:02:55.9]}
7. O-O {[%clk 0:02:54.1]} 7... Nf6 {[%clk 0:02:54.4]} 8. h3 {[%clk 0:02:53.5]}
8... O-O {[%clk 0:02:53]} 9. Re1 {[%clk 0:02:48.7]} 9... Qc7 {[%clk 0:02:42.6]}
10. Bg5 {[%clk 0:02:43.8]} 10... h6 {[%clk 0:02:39.4]} 11. Bh4 {[%clk
0:02:42.9]} 11... Nh5 {[%clk 0:02:15.3]} 12. Qb3 {[%clk 0:02:03.7]} 12... Rd8
{[%clk 0:01:56.6]} 13. Bb5 {[%clk 0:01:43.9]} 13... g5 {[%clk 0:01:49.8]} 14.
Bxc6 {[%clk 0:01:30]} 14... bxc6 {[%clk 0:01:46.1]} 15. Nxg5 {[%clk 0:01:10]}
15... hxg5 {[%clk 0:01:44.7]} 16. Bxg5 {[%clk 0:01:10.9]} 16... Bf6 {[%clk
0:01:32]} 17. Bh6 {[%clk 0:01:01.9]} 17... Nf4 {[%clk 0:01:10]} 18. Nd2 {[%clk
0:00:50.7]} 18... Bf5 {[%clk 0:01:00.5]} 19. Re3 {[%clk 0:00:48.5]} 19... Kh7
{[%clk 0:00:51.6]} 20. Bxf4 {[%clk 0:00:42.5]} 20... Qxf4 {[%clk 0:00:51.7]} 21.
Nf3 {[%clk 0:00:30.8]} 21... Rab8 {[%clk 0:00:47.4]} 22. Qa3 {[%clk 0:00:28.4]}
22... Rb7 {[%clk 0:00:45.9]} 23. Rae1 {[%clk 0:00:26.9]} 23... e6 {[%clk
0:00:42]} 24. Qa6 {[%clk 0:00:23.8]} 24... Qc7 {[%clk 0:00:38.5]} 25. b3 {[%clk
0:00:22]} 25... Rg8 {[%clk 0:00:34.8]} 26. Qe2 {[%clk 0:00:21]} 26... Qf4 {[%clk
0:00:31.9]} 27. Ne5 {[%clk 0:00:15]} 27... Be4 {[%clk 0:00:29.1]} 28. g3 {[%clk
0:00:06.8]} 28... Qh6 {[%clk 0:00:25.7]} 29. Kh2 {[%clk 0:00:06.7]} 29... Rg7
{[%clk 0:00:22.6]} 30. Ng4 {[%clk 0:00:06.5]} 30... Rxg4 {[%clk 0:00:17.6]} 31.
Qxg4 {[%clk 0:00:05.4]} 31... Bf5 {[%clk 0:00:18.5]} 32. Qf3 {[%clk 0:00:04.4]}
32... Bxh3 {[%clk 0:00:18.1]} 33. Qf4 {[%clk 0:00:03.5]} 33... Bg5 {[%clk
0:00:15.8]} 34. Qe5 {[%clk 0:00:02.1]} 34... Bf5+ {[%clk 0:00:12.3]} 35. Kg1
{[%clk 0:00:01.9]} 35... Be4 {[%clk 0:00:13.2]} 0-1

[Event "*** Titled Tuesday Blitz"]
[Site "Chess.com"]
[Date "2020.11.03"]
[Round "1"]
[White "tan275"]
[Black "boasovietica"]
[Result "1-0"]
[WhiteElo "2196"]
[BlackElo "2526"]
[TimeControl "180+1"]
[EndTime "10:07:22 PST"]
[Termination "tan275 won by resignation"]

1. d4 {[%clk 0:02:58.2]} 1... Nf6 {[%clk 0:02:59.7]} 2. c4 {[%clk 0:02:57.8]}
2... g6 {[%clk 0:03:00.1]} 3. g3 {[%clk 0:02:57.7]} 3... Bg7 {[%clk 0:03:00.6]}
4. Bg2 {[%clk 0:02:58]} 4... O-O {[%clk 0:03:01.2]} 5. Nc3 {[%clk 0:02:57.7]}
5... c5 {[%clk 0:03:00.9]} 6. Nf3 {[%clk 0:02:53.4]} 6... Nc6 {[%clk 0:02:59.6]}
7. d5 {[%clk 0:02:39.8]} 7... Na5 {[%clk 0:02:59.2]} 8. Qd3 {[%clk 0:02:39.6]}
8... d6 {[%clk 0:02:55.3]} 9. O-O {[%clk 0:02:38.6]} 9... e5 {[%clk 0:02:54.9]}
10. dxe6 {[%clk 0:02:10.5]} 10... Bxe6 {[%clk 0:02:54]} 11. Nd2 {[%clk 0:02:11]}
11... Rb8 {[%clk 0:02:48.2]} 12. a4 {[%clk 0:02:08.9]} 12... Nc6 {[%clk
0:02:46.7]} 13. Nd5 {[%clk 0:01:49.5]} 13... Nxd5 {[%clk 0:02:25.7]} 14. cxd5
{[%clk 0:01:47.1]} 14... Nb4 {[%clk 0:02:25.8]} 15. Qb3 {[%clk 0:01:45]} 15...
Bd7 {[%clk 0:01:49.5]} 16. Nc4 {[%clk 0:01:34.7]} 16... b5 {[%clk 0:01:48]} 17.
axb5 {[%clk 0:01:27.7]} 17... Bxb5 {[%clk 0:01:47.8]} 18. Rxa7 {[%clk 0:01:23]}
18... Re8 {[%clk 0:01:45]} 19. Bf4 {[%clk 0:01:14.8]} 19... Rxe2 {[%clk
0:01:38.8]} 20. Bxd6 {[%clk 0:01:00.5]} 20... Bxc4 {[%clk 0:01:30.7]} 21. Qxc4
{[%clk 0:01:00.2]} 21... Qxd6 {[%clk 0:01:30.7]} 22. Qxe2 {[%clk 0:00:59.1]}
22... Bd4 {[%clk 0:01:24.1]} 23. Qe7 {[%clk 0:00:49.2]} 23... Qxe7 {[%clk
0:01:15.3]} 24. Rxe7 {[%clk 0:00:48.8]} 24... Bxb2 {[%clk 0:01:15.9]} 25. d6
{[%clk 0:00:49]} 25... Rd8 {[%clk 0:01:10.9]} 26. d7 {[%clk 0:00:45.8]} 26...
Kg7 {[%clk 0:01:00]} 27. Rd1 {[%clk 0:00:41.7]} 27... c4 {[%clk 0:00:34.4]} 28.
Re8 {[%clk 0:00:34.4]} 28... Bf6 {[%clk 0:00:29.8]} 29. Rxd8 {[%clk 0:00:32.3]}
29... Bxd8 {[%clk 0:00:30.1]} 30. Rb1 {[%clk 0:00:24.9]} 30... Nc2 {[%clk
0:00:07.5]} 31. Rb8 {[%clk 0:00:22.6]} 31... Bf6 {[%clk 0:00:03.2]} 32. d8=Q
{[%clk 0:00:21.4]} 32... Bxd8 {[%clk 0:00:03.5]} 33. Rxd8 {[%clk 0:00:22]} 33...
c3 {[%clk 0:00:04]} 34. Be4 {[%clk 0:00:18.9]} 34... Nb4 {[%clk 0:00:03.1]} 35.
Rc8 {[%clk 0:00:17.1]} 35... f5 {[%clk 0:00:03.6]} 36. Bb1 {[%clk 0:00:15.9]}
36... Kf6 {[%clk 0:00:03.7]} 37. Rxc3 {[%clk 0:00:15.3]} 1-0